fUSD/lending_fUSD_20240628
["ID","MTS","AMOUNT","RATE_DAILY","PERIOD"]
[330534126,1719560011952,-166.66666667,0.00042218,30]
[330534127,1719560011985,-343.56587168,0.00042219,30]
[330534128,1719560012017,-150.0,0.0004224,20]
[330534129,1719560012050,-150.0,0.00042246,30]
[330534130,1719560012082,-155.75150198,0.00042255,30]
[330534131,1719560012114,-1000.0,0.00042263,30]
[330534132,1719560012146,-3927.55685983,0.00042272,30]
[330534133,1719560012178,-1320.53073803,0.00042279,15]
[330534134,1719560012210,-1464.11520179,0.00042288,30]
[330534135,1719560012242,-154.31578898,0.00042296,30]
[330534136,1719560012274,-1000.0,0.00042314,30]
[330534137,1719560012306,-3927.55685983,0.00042324,30]
[330534138,1719560012338,-151.0,0.00042356,120]
[330534139,1719560012371,-158.58268872,0.00042357,30]
[330534140,1719560012404,-182.46682373,0.00042359,30]
[330534141,1719560012437,-1000.0,0.00042364,30]
[330534142,1719560012469,-567.95615284,0.00042407,30]
[330534143,1719560012501,-228.57063521,0.00042408,30]
[330534144,1719560012535,-1000.0,0.00042415,30]
[330534145,1719560012566,-152.24387108,0.00042423,30]
[330534146,1719560012598,-485.20888411,0.00042427,30]
[330534147,1719560012631,-210.39539184,0.00042427,30]
[330534148,1719560012670,-2166.46638259,0.00042462,30]
[330534149,1719560012703,-254.54958703,0.00042465,30]
[330534150,1719560012735,-500.0,0.00042465,30]
[330534151,1719560012767,-500.0,0.00042465,30]
[330534152,1719560012798,-500.0,0.00042465,60]
[330534153,1719560012829,-1000.0,0.00042466,30]
[330534154,1719560012861,-408.219848,0.00042468,30]
[330534155,1719560012893,-409.212911,0.00042468,30]
[330534156,1719560012926,-632.23,0.00042477,30]
[330534157,1719560012959,-632.23,0.00042477,30]
[330534158,1719560012993,-632.23,0.00042477,30]
[330534159,1719560013025,-632.23,0.00042477,30]
[330534160,1719560013055,-1347.47321275,0.000425,45]
[330534161,1719560013087,-751.26,0.000425,120]
[330534162,1719560013120,-1000000.0,0.000425,65]
[330534163,1719560013153,-357.69,0.000425,120]
[330534164,1719560013186,-1000.0,0.00042516,30]
[330534165,1719560013218,-567.95615284,0.0004253,30]
[330534166,1719560013249,-1000.0,0.00042567,30]
[330534167,1719560013280,-1000.0,0.00042618,30]
[330534168,1719560013312,-228.57063521,0.0004263,30]
[330534169,1719560013343,-151.0,0.0004263,120]
[330534170,1719560013375,-485.20888411,0.0004265,30]
[330534171,1719560013406,-210.39539184,0.0004265,30]
[330534172,1719560013437,-1000.0,0.00042669,30]
[330534173,1719560013468,-500.0,0.00042689,30]
[330534174,1719560013501,-500.0,0.00042689,30]
[330534175,1719560013536,-150.0,0.0004269,30]
[330534176,1719560013568,-154.28911006,0.000427,120]
[330534177,1719560013600,-1000.0,0.00042719,30]
[330534178,1719560013632,-500.0,0.00042739,30]
[330534179,1719560013669,-500.0,0.00042739,60]
[330534180,1719560013967,-500.0,0.00042739,30]
[330534181,1719560014002,-632.23,0.00042751,30]
[330534182,1719560014036,-632.23,0.00042751,30]
[330534183,1719560014070,-1000.0,0.0004277,30]
[330534184,1719560014105,-477.59452261,0.00042804,40]
[330534185,1719560014139,-729.87119338,0.00042804,40]
[330534186,1719560014172,-380.48830171,0.00042804,40]
[330534187,1719560014206,-1105.65277059,0.00042804,40]
[330534188,1719560014240,-1000.0,0.00042821,30]
[330534189,1719560014273,-150.0,0.00042826,30]
[330534190,1719560014307,-150.0,0.00042861,120]
[330534191,1719560014341,-1000.0,0.00042872,30]
[330534192,1719560014375,-485.20888411,0.00042873,30]
[330534193,1719560014408,-210.39539184,0.00042873,30]
[330534194,1719560014440,-151.0,0.000429,30]
[330534195,1719560014474,-151.0,0.000429,30]
[330534196,1719560014509,-151.0,0.000429,30]
[330534197,1719560014544,-151.0,0.000429,30]
[330534198,1719560014576,-151.0,0.000429,30]
[330534199,1719560014608,-151.0,0.000429,30]
[330534200,1719560014642,-196.0,0.000429,30]
[330534201,1719560014676,-405496.6736233,0.000429,40]
[330534202,1719560014709,-155.0,0.000429,40]
[330534203,1719560014743,-1000.0,0.00042922,30]
[330534204,1719560014774,-182.46682373,0.00042925,30]
[330534205,1719560014808,-1000.0,0.00042973,30]
[330534206,1719560014840,-192.21126125,0.00042979,30]
[330534207,1719560014874,-1512.89604671,0.00043,14]
[330534208,1719560014907,-2000.0,0.00043,30]
[330534209,1719560014941,-549.80547905,0.00043,30]
[330534210,1719560014977,-884.46304728,0.00043,30]
[330534211,1719560015012,-665512.0,0.00043,120]
[330534212,1719560015049,-768.43791723,0.00043,120]
[330534213,1719560015083,-1242.77565129,0.00043,30]
[330534214,1719560015118,-500000.0,0.00043,90]
[330534215,1719560015152,-2000.0,0.00043,30]
[330534216,1719560015184,-1346.86449046,0.00043,14]
[330534217,1719560015218,-500000.0,0.00043,42]
[330534218,1719560015251,-1359.81715442,0.00043,60]
[330534219,1719560015283,-2267.0,0.00043,30]
[330534220,1719560015317,-526.15181333,0.00043,30]
[330534221,1719560015351,-500.0,0.00043013,30]
[330534222,1719560015385,-342.59805309,0.00043013,30]
[330534223,1719560015421,-2160.46,0.00043013,120]
[330534224,1719560015454,-500.0,0.00043013,95]
[330534225,1719560015488,-203.85184196,0.0004302,120]
[330534226,1719560015524,-1000.0,0.00043024,30]
[330534227,1719560015559,-632.23,0.00043024,30]
[330534228,1719560015592,-632.23,0.00043024,30]
[330534229,1719560015628,-1000.0,0.00043075,30]
[330534230,1719560015663,-207.2920081,0.00043095,30]
[330534231,1719560015696,-485.20888411,0.00043096,30]
[330534232,1719560015731,-210.39539184,0.00043096,30]
[330534233,1719560015767,-408.219848,0.00043112,30]
[330534234,1719560015799,-409.212911,0.00043112,30]
[330534235,1719560015836,-1000.0,0.00043125,30]
[330534236,1719560015869,-153.85422544,0.00043169,30]
[330534237,1719560015902,-1000.0,0.00043176,30]
[330534238,1719560015937,-1252.5058,0.0004318,60]
[330534239,1719560015971,-2166.46638259,0.00043183,30]
[330534240,1719560016004,-197.47651852,0.00043212,30]
[330534241,1719560016038,-1000.0,0.00043227,30]
[330534242,1719560016073,-500.0,0.00043237,30]
[330534243,1719560016108,-500.0,0.00043237,30]
[330534244,1719560016144,-2166.46638277,0.00043239,30]
[330534245,1719560016177,-975.2324384,0.00043243,30]
[330534246,1719560016211,-500000.0,0.0004325,80]
[330534247,1719560016245,-1000.0,0.00043278,30]
[330534248,1719560016278,-500.0,0.00043287,95]
[330534249,1719560016311,-500.0,0.00043287,30]
[330534250,1719560016344,-464.33394173,0.00043287,30]
[330534251,1719560016379,-151.0,0.00043288,120]
[330534252,1719560016412,-207.29200823,0.00043291,30]
[330534253,1719560016448,-632.23,0.00043297,30]
[330534254,1719560016486,-632.23,0.00043297,30]
[330534255,1719560016524,-192.21126125,0.00043307,30]
[330534256,1719560016559,-153.85422557,0.00043315,30]
[330534257,1719560016595,-485.20888411,0.00043319,30]
[330534258,1719560016632,-210.39539184,0.00043319,30]
[330534259,1719560016670,-1000.0,0.00043328,30]
[330534260,1719560016705,-150.0,0.00043339,30]
[330534261,1719560016739,-550.41157109,0.00043341,30]
[330534262,1719560016771,-192.2112614,0.00043353,30]
[330534263,1719560016804,-567.95615293,0.00043358,30]
[330534264,1719560016836,-1000.0,0.00043379,30]
[330534265,1719560016867,-154020.13590219,0.000434,120]
[330534266,1719560016898,-150.0,0.00043407,30]
[330534267,1719560016930,-1000.0,0.0004343,30]
[330534268,1719560016961,-975.2324384,0.0004347,30]
[330534269,1719560016996,-1000.0,0.0004348,30]
[330534270,1719560017028,-500000.0,0.000435,90]
[330534271,1719560017061,-10001.98800005,0.000435,120]
[330534272,1719560017097,-2031.0,0.000435,30]
[330534273,1719560017131,-1000.0,0.00043531,30]
[330534274,1719560017162,-151.0,0.00043534,120]
[330534275,1719560017193,-485.20888411,0.00043542,30]
[330534276,1719560017226,-210.39539184,0.00043542,30]
[330534277,1719560017258,-464.33394173,0.0004356,30]
[330534278,1719560017290,-500.0,0.00043561,120]
[330534279,1719560017322,-500.0,0.00043561,95]
[330534280,1719560017353,-632.23,0.0004357,30]
[330534281,1719560017387,-632.23,0.0004357,30]
[330534282,1719560017418,-1000.0,0.00043582,30]
[330534283,1719560017681,-287.31708814,0.00043625,30]
[330534284,1719560017715,-274.67698163,0.00043629,30]
[330534285,1719560017747,-18846.9738624,0.00043632,30]
[330534286,1719560017778,-1000.0,0.00043633,30]
[330534287,1719560017811,-340.67511441,0.00043635,30]
[330534288,1719560017842,-324.29383686,0.00043638,30]
[330534289,1719560017871,-33932.28591838,0.00043639,30]
[330534290,1719560017901,-324.29383686,0.0004364,30]
[330534291,1719560017931,-324.29383686,0.0004364,30]
[330534292,1719560017961,-219.41582989,0.00043653,30]
[330534293,1719560017993,-293.81022576,0.00043654,30]
[330534294,1719560018021,-459.51362361,0.00043659,30]
[330534295,1719560018052,-975.2324385,0.00043659,30]
[330534296,1719560018081,-213350.78790183,0.00043659,30]
[330534297,1719560018111,-9277.63938301,0.00043659,30]
[330534298,1719560018141,-218.70337088,0.0004366,30]
[330534299,1719560018172,-340.67511441,0.00043662,30]
[330534300,1719560018203,-287.31708814,0.00043663,30]
[330534301,1719560018234,-522.46093678,0.00043663,30]
[330534302,1719560018266,-274.67698163,0.00043665,30]
[330534303,1719560018297,-375.85061557,0.00043668,30]
[330534304,1719560018327,-18846.9738624,0.00043668,30]
[330534305,1719560018357,-343.56587168,0.0004367,30]
[330534306,1719560018388,-168910.45515783,0.00043672,30]
[330534307,1719560018420,-66629.98782437,0.00043673,30]
[330534308,1719560032438,-898.05154964,0.00031076,15]
[330534309,1719560032473,-300.0,0.00031076,15]
[330534310,1719560032511,-500.0,0.00031076,10]
[330534311,1719560032547,-264.63539182,0.00031076,10]
[330534312,1719560032584,-275.0,0.00031076,14]
[330534313,1719560032621,-778.26005094,0.00031076,20]
[330534314,1719560032659,-3049.0,0.00031076,10]
[330534315,1719560032696,-94419.26831221,0.00031076,10]
[330534316,1719560032731,-2163.41225298,0.00031076,10]
[330534317,1719560032764,-4655.98712351,0.00031076,10]
[330534318,1719560032800,-464.9001333,0.00031076,10]
[330534319,1719560032836,-207.50378353,0.00031076,30]
[330534320,1719560032869,-258.0159905,0.00031076,30]
[330534321,1719560032903,-12000.0,0.00031076,32]
[330534322,1719560032937,-843.65416117,0.00031076,30]
[330534323,1719560032971,-192.83821782,0.00031076,30]
[330534324,1719560033006,-252.57970971,0.00031076,30]
[330534325,1719560033040,-229.84397558,0.00031076,30]
[330534326,1719560033074,-165.42516788,0.00031076,30]
[330534327,1719560033108,-454.99293391,0.00031076,30]
[330534328,1719560033142,-1091.96489245,0.00031076,30]
[330534329,1719560033176,-285.90881854,0.00031076,30]
[330534330,1719560033210,-266.0,0.00031076,30]
[330534331,1719560033244,-1000.0,0.00031076,30]
[330534332,1719560033280,-523.41213345,0.00031076,120]
[330534333,1719560033314,-1000.0,0.00031076,30]
[330534334,1719560033349,-1000.0,0.00031076,30]
[330534335,1719560033385,-1000.0,0.00031076,30]
[330534336,1719560033420,-1000.0,0.00031076,30]
[330534337,1719560033456,-1000.0,0.00031076,30]
[330534338,1719560033492,-541.41089552,0.00031076,30]
[330534339,1719560033529,-1000.0,0.00031076,30]
[330534340,1719560033565,-1000.0,0.00031076,60]
[330534341,1719560033603,-1000.0,0.00031076,30]
[330534342,1719560033641,-1000.0,0.00031076,120]
[330534343,1719560033680,-1000.0,0.00031076,30]
[330534344,1719560033716,-1000.0,0.00031076,30]
[330534345,1719560033753,-1000.0,0.00031076,60]
[330534346,1719560033790,-1000.0,0.00031076,30]
[330534347,1719560033825,-1000.0,0.00031076,30]
[330534348,1719560033862,-1000.0,0.00031076,60]
[330534349,1719560033899,-1000.0,0.00031076,30]
[330534350,1719560033935,-1000.0,0.00031076,30]
[330534351,1719560033972,-1000.0,0.00031076,60]
[330534352,1719560034009,-1000.0,0.00031076,30]
[330534353,1719560034046,-1000.0,0.00031076,60]
[330534354,1719560034083,-1000.0,0.00031076,30]
[330534355,1719560034120,-1000.0,0.00031076,120]
[330534356,1719560034158,-1000.0,0.00031076,60]
[330534357,1719560034195,-1000.0,0.00031076,120]
[330534358,1719560034233,-1000.0,0.00031076,60]
[330534359,1719560034270,-1000.0,0.00031076,30]
[330534360,1719560034307,-1000.0,0.00031076,30]
[330534361,1719560034346,-452.59256081,0.00031076,30]
[330534362,1719560034383,-1000.0,0.00031076,30]
[330534363,1719560034422,-1000.0,0.00031076,60]
[330534364,1719560034460,-1000.0,0.00031076,30]
[330534365,1719560034499,-1000.0,0.00031076,30]
[330534366,1719560034541,-482.51053347,0.00031076,30]
[330534367,1719560034578,-360.61651725,0.00031076,30]
[330534368,1719560034616,-833.49360886,0.00031076,30]
[330534369,1719560034655,-1000.0,0.00031076,30]
[330534370,1719560034691,-697.96867458,0.00031076,30]
[330534371,1719560034727,-256.87375516,0.00031076,30]
[330534372,1719560034764,-816.41639386,0.00031076,30]
[330534373,1719560034799,-824.22523498,0.00031076,30]
[330534374,1719560034837,-40381.61658406,0.00031076,35]
[330534375,1719560034874,-659.05457286,0.00031076,30]
[330534376,1719560034911,-887.80822639,0.00031076,30]
[330534377,1719560034947,-197.21566328,0.00031076,30]
[330534378,1719560034981,-917.1842111,0.00031076,30]
[330534379,1719560035018,-195.68691835,0.00031076,30]
[330534380,1719560035053,-334.95016982,0.00031076,31]
[330534381,1719560035089,-332.70749222,0.00031076,30]
[330534382,1719560035125,-500.0,0.00031076,30]
[330534383,1719560035161,-1036.20571038,0.00031076,30]
[330534384,1719560035197,-1135.52327469,0.00031076,120]
[330534385,1719560035233,-13920.01394263,0.00031076,30]
[330534386,1719560035268,-14029.53665615,0.00031076,30]
[330534387,1719560035309,-6093.77445649,0.00031076,30]
[330534388,1719560035351,-3816.49983186,0.00031076,30]
[330534389,1719560035388,-3476.76243929,0.00031076,30]
[330534390,1719560035424,-98353.26086906,0.00031076,30]
[330534391,1719560035459,-10630.0656,0.00031076,30]
[330534392,1719560035496,-1570.21493767,0.00031076,30]
[330534393,1719560035536,-244.13429058,0.00031076,120]
[330534394,1719560035575,-161.74608991,0.00031076,20]
[330534395,1719560035614,-246.93318228,0.00031076,120]
[330534396,1719560035656,-5823.69955681,0.00031076,120]
[330534397,1719560035699,-392.49509682,0.00031076,120]
[330534398,1719560035739,-252.68991519,0.00031076,120]
[330534399,1719560035778,-1437.55921954,0.00031076,120]
[330534400,1719560035815,-209.88487179,0.00031076,120]
[330534401,1719560035853,-2405.775,0.00031076,36]
[330534402,1719560035889,-89116.9138521,0.00031076,30]
[330534403,1719560035925,-1039.0,0.00031076,10]
[330534404,1719560035961,-1039.0,0.00031076,10]
[330534405,1719560035997,-1039.0,0.00031076,10]
[330534406,1719560036033,-1039.0,0.00031076,10]
[330534407,1719560036068,-1039.0,0.00031076,10]
[330534408,1719560036104,-1039.0,0.00031076,10]
[330534409,1719560036140,-1039.0,0.00031076,10]
[330534410,1719560036176,-1039.0,0.00031076,10]
[330534411,1719560036211,-1039.0,0.00031076,10]
[330534412,1719560036247,-1039.0,0.00031076,10]
[330534413,1719560036284,-1039.0,0.00031076,10]
[330534414,1719560036322,-1039.0,0.00031076,10]
[330534415,1719560036359,-1039.0,0.00031076,10]
[330534416,1719560036394,-1039.0,0.00031076,10]
[330534417,1719560036429,-1039.0,0.00031076,10]
[330534418,1719560036465,-1039.0,0.00031076,10]
[330534419,1719560036501,-1039.0,0.00031076,10]
[330534420,1719560036539,-1039.0,0.00031076,10]
[330534421,1719560036575,-1039.0,0.00031076,10]
[330534422,1719560036609,-1039.0,0.00031076,10]
[330534423,1719560036648,-1039.0,0.00031076,10]
[330534424,1719560036685,-1039.0,0.00031076,10]
[330534425,1719560036722,-1039.0,0.00031076,10]
[330534426,1719560036759,-1039.0,0.00031076,10]
[330534427,1719560036794,-1039.0,0.00031076,10]
[330534428,1719560036831,-1039.0,0.00031076,10]
[330534429,1719560036868,-1034.76497523,0.00031076,10]
[330534430,1719560036903,-1039.0,0.00031076,10]
[330534431,1719560036939,-5100.0,0.00031076,34]
[330534432,1719560036974,-5178.50575383,0.00031076,120]
[330534433,1719560037009,-981.0,0.00031076,30]
[330534434,1719560037045,-515.0,0.00031076,30]
[330534435,1719560037082,-191.0,0.00031076,30]
[330534436,1719560037118,-217.0,0.00031076,120]
[330534437,1719560037151,-478.95806577,0.00031076,120]
[330534438,1719560037187,-190.0,0.00031076,30]
[330534439,1719560037221,-205.84709727,0.00031076,30]
[330534440,1719560037257,-329.0,0.00031076,30]
[330534441,1719560037292,-492.073978,0.00031076,14]
[330534442,1719560037327,-1000.0,0.00031076,30]
[330534443,1719560037361,-1000.0,0.00031076,30]
[330534444,1719560037396,-1000.0,0.00031076,30]
[330534445,1719560037431,-1000.0,0.00031076,30]
[330534446,1719560037465,-1000.0,0.00031076,30]
[330534447,1719560037498,-1000.0,0.00031076,30]
[330534448,1719560037538,-1000.0,0.00031076,30]
[330534449,1719560037573,-1000.0,0.00031076,30]
[330534450,1719560037607,-1000.0,0.00031076,30]
[330534451,1719560037641,-1000.0,0.00031076,30]
[330534452,1719560037676,-1000.0,0.00031076,30]
[330534453,1719560037711,-1000.0,0.00031076,30]
[330534454,1719560037746,-1000.0,0.00031076,30]
[330534455,1719560037782,-1000.0,0.00031076,30]
[330534456,1719560037818,-1000.0,0.00031076,30]
[330534457,1719560037852,-1000.0,0.00031076,30]
[330534458,1719560037886,-1000.0,0.00031076,30]
[330534459,1719560037921,-1000.0,0.00031076,30]
[330534460,1719560037955,-1307.331628,0.00031076,30]
[330534461,1719560048598,506.82,0.00031076,10]
[330534462,1719560067224,-1069.94736295,0.00011197,2]
[330534463,1719560067254,-208.29876607,0.00012273,2]
[330534464,1719560067285,-378.75665363,0.00012302,2]
[330534465,1719560067316,-155.0,0.00012302,2]
[330534466,1719560070544,-679.787612,0.00033,14]
[330534467,1719560070587,-1208.0,0.00034169,30]
[330534468,1719560070640,-500.0,0.00037757,10]
[330534469,1719560070683,-500.0,0.00038853,10]
[330534470,1719560070724,-359.42699708,0.00039949,10]
[330534471,1719560070762,-513.07289286,0.0004,10]
[330534472,1719560070796,-643.28604217,0.0004,120]
[330534473,1719560070832,-267553.32873855,0.0004,30]
[330534474,1719560070874,-146720.80007746,0.00043673,30]
[330534475,1719560070911,-340.67511441,0.00043675,30]
[330534476,1719560070945,-182.46682392,0.00043675,30]
[330534477,1719560070979,-1000.0,0.00043683,30]
[330534478,1719560071013,-5441.63225541,0.00043684,30]
[330534479,1719560071049,-459.51362361,0.00043689,30]
[330534480,1719560071090,-522.46093678,0.00043701,30]
[330534481,1719560071131,-219.41582989,0.00043709,30]
[330534482,1719560071174,-28270.4607936,0.0004371,30]
[330534483,1719560071215,-287.31708814,0.00043716,30]
[330534484,1719560071255,-5441.63225541,0.00043722,30]
[330534485,1719560071290,-168910.45515783,0.00043732,30]
[330534486,1719560071325,-1000.0,0.00043734,30]
[330534487,1719560071359,-219.41582989,0.00043736,30]
[330534488,1719560071394,-213350.78790183,0.00043737,30]
[330534489,1719560071430,-218.70337088,0.00043738,30]
[330534490,1719560071466,-9277.63938301,0.00043743,30]
[330534491,1719560071503,-293.81022576,0.00043744,30]
[330534492,1719560071540,-522.46093678,0.00043745,30]
[330534493,1719560071574,-33932.28591838,0.00043745,30]
[330534494,1719560071610,-18846.9738624,0.00043745,30]
[330534495,1719560071645,-490.66778432,0.00043748,120]
[330534496,1719560071684,-459.51362361,0.00043749,30]
[330534497,1719560071720,-9277.63938301,0.00043749,30]
[330534498,1719560071756,-375.85061557,0.00043749,30]
[330534499,1719560071791,-168910.45515783,0.00043752,30]
[330534500,1719560071825,-408.219848,0.00043755,30]
[330534501,1719560071858,-409.212911,0.00043755,30]
[330534502,1719560071893,-485.20888411,0.00043765,30]
[330534503,1719560071928,-210.39539184,0.00043765,30]
[330534504,1719560071962,-218.70337088,0.00043765,30]
[330534505,1719560071996,-375.85061557,0.00043766,30]
[330534506,1719560072032,-3927.55685983,0.00043767,30]
[330534507,1719560072066,-5441.63225541,0.00043772,30]
[330534508,1719560072100,-33932.28591838,0.00043773,30]
[330534509,1719560072135,-293.81022576,0.00043774,30]
[330534510,1719560072171,-28270.4607936,0.00043775,30]
[330534511,1719560072206,-3927.55686002,0.00043777,30]
[330534512,1719560072241,-2000.0,0.00043781,30]
[330534513,1719560072278,-464.33394173,0.00043783,30]
[330534514,1719560072315,-1000.0,0.00043785,30]
[330534515,1719560072350,-2598.0,0.00043787,58]
[330534516,1719560072386,-10144.59569341,0.00043788,30]
[330534517,1719560072423,-28270.4607936,0.00043789,30]
[330534518,1719560072464,-10144.59569341,0.00043789,30]
[330534519,1719560072498,-10144.59569341,0.00043792,30]
[330534520,1719560072534,-274.67698163,0.00043793,30]
[330534521,1719560072572,-1464.11520188,0.00043793,30]
[330534522,1719560072609,-464.3339419,0.00043793,30]
[330534523,1719560072644,-191845.48201356,0.000438,120]
[330534524,1719560072682,-75000.0005628,0.000438,120]
[330534525,1719560072717,-78236.89192115,0.000438,120]
[330534526,1719560072752,-464.69621314,0.000438,30]
[330534527,1719560072787,-1000.0,0.000438,120]
[330534528,1719560072821,-1000.0,0.000438,120]
[330534529,1719560072857,-1000.0,0.000438,120]
[330534530,1719560072892,-1000.0,0.000438,120]
[330534531,1719560072927,-1183.36,0.000438,120]
[330534532,1719560072961,-161.87,0.000438,120]
[330534533,1719560072996,-831.06010379,0.000438,30]
[330534534,1719560073032,-1003.85,0.000438,120]
[330534535,1719560073069,-154.02,0.000438,36]
[330534536,1719560073108,-154.02,0.000438,36]
[330534537,1719560073146,-154.02,0.000438,36]
[330534538,1719560073185,-154.02,0.000438,36]
[330534539,1719560073222,-154.02,0.000438,36]
[330534540,1719560073260,-154.02,0.000438,36]
[330534541,1719560073296,-154.02,0.000438,36]
[330534542,1719560073331,-500.0,0.00043823,120]
[330534543,1719560073366,-500.0,0.00043823,120]
[330534544,1719560073401,-154.33905224,0.00043834,30]
[330534545,1719560073436,-500.0,0.00043835,120]
[330534546,1719560073475,-500.0,0.00043835,95]
[330534547,1719560073510,-500.0,0.00043835,30]
[330534548,1719560073548,-5000.0,0.00043835,120]
[330534549,1719560073583,-5000.0,0.00043835,120]
[330534550,1719560073620,-5000.0,0.00043835,120]
[330534551,1719560073659,-5000.0,0.00043835,120]
[330534552,1719560073991,-5000.0,0.00043835,120]
[330534553,1719560074029,-5000.0,0.00043835,120]
[330534554,1719560074066,-3838.57362919,0.00043835,120]
[330534555,1719560074102,-2160.46,0.00043835,120]
[330534556,1719560074141,-515.89,0.00043835,120]
[330534557,1719560074182,-515.89,0.00043835,120]
[330534558,1719560074220,-515.89,0.00043835,120]
[330534559,1719560074258,-515.89,0.00043835,120]
[330534560,1719560074295,-515.89,0.00043835,120]
[330534561,1719560074333,-515.89,0.00043835,120]
[330534562,1719560074370,-515.89,0.00043835,120]
[330534563,1719560074408,-515.89,0.00043835,120]
[330534564,1719560074448,-515.89,0.00043835,120]
[330534565,1719560074485,-515.89,0.00043835,120]
[330534566,1719560074526,-515.89,0.00043835,120]
[330534567,1719560074570,-515.89,0.00043835,120]
[330534568,1719560074609,-515.89,0.00043835,120]
[330534569,1719560074647,-515.89,0.00043835,120]
[330534570,1719560074683,-515.89,0.00043835,120]
[330534571,1719560074723,-515.89,0.00043835,120]
[330534572,1719560074760,-515.89,0.00043835,120]
[330534573,1719560074796,-515.89,0.00043835,120]
[330534574,1719560074831,-515.89,0.00043835,120]
[330534575,1719560074868,-515.89,0.00043835,120]
[330534576,1719560074906,-515.89,0.00043835,120]
[330534577,1719560074944,-515.89,0.00043835,120]
[330534578,1719560074980,-515.89,0.00043835,120]
[330534579,1719560075015,-515.89755272,0.00043835,120]
[330534580,1719560075052,-559.19,0.00043835,25]
[330534581,1719560075087,-559.19,0.00043835,25]
[330534582,1719560075123,-559.19,0.00043835,25]
[330534583,1719560075158,-559.19,0.00043835,25]
[330534584,1719560075195,-559.19,0.00043835,25]
[330534585,1719560075232,-559.19,0.00043835,25]
[330534586,1719560075270,-559.19,0.00043835,25]
[330534587,1719560075308,-559.19,0.00043835,25]
[330534588,1719560075344,-559.19,0.00043835,25]
[330534589,1719560075380,-559.19,0.00043835,25]
[330534590,1719560075418,-559.19,0.00043835,25]
[330534591,1719560075456,-559.19,0.00043835,25]
[330534592,1719560075493,-559.19,0.00043835,25]
[330534593,1719560075536,-559.19,0.00043835,25]
[330534594,1719560075574,-559.19,0.00043835,25]
[330534595,1719560075611,-559.19,0.00043835,25]
[330534596,1719560075650,-559.19,0.00043835,25]
[330534597,1719560075691,-559.19,0.00043835,25]
[330534598,1719560075730,-559.19,0.00043835,25]
[330534599,1719560075768,-559.19,0.00043835,25]
[330534600,1719560075808,-559.19,0.00043835,25]
[330534601,1719560075848,-559.19,0.00043835,25]
[330534602,1719560075885,-559.19,0.00043835,25]
[330534603,1719560075923,-559.32436396,0.00043835,25]
[330534604,1719560075959,-500.0,0.00043835,120]
[330534605,1719560075997,-1109.92438089,0.00043836,30]
[330534606,1719560076037,-500.0,0.00043836,14]
[330534607,1719560076076,-632.23,0.00043844,30]
[330534608,1719560076115,-632.23,0.00043844,30]
[330534609,1719560076153,-1017.58556494,0.0004388,30]
[330534610,1719560076189,-457935.21496937,0.0004388,30]
[330534611,1719560076226,-500.0,0.00043882,60]
[330534612,1719560076264,-500.69,0.00043882,90]
[330534613,1719560076303,-197.47651852,0.00043883,30]
[330534614,1719560076342,-1000.0,0.000439,120]
[330534615,1719560076382,-1000.0,0.000439,120]
[330534616,1719560076420,-1000.0,0.000439,120]
[330534617,1719560076457,-1000.0,0.000439,120]
[330534618,1719560076495,-1001.93,0.000439,120]
[330534619,1719560076537,-78096.0,0.000439,33]
[330534620,1719560076575,-931.83777091,0.000439,120]
[330534621,1719560076615,-343.56587182,0.00043903,30]
[330534622,1719560076655,-151.0,0.00043945,120]
[330534623,1719560076696,-150.0,0.00043954,120]
[330534624,1719560076734,-228.57063522,0.00043958,30]
[330534625,1719560076772,-161.61900548,0.0004396,30]